bitfinex/quotes_ETHUSD_20260217
["timestamp","ask_amount","ask_price","bid_price","bid_amount"]
[1771340762336,0.001,1953.4,1952.6,1.28034415]
[1771340762845,0.001,1952.7,1952.6,1.28034415]
[1771340763178,0.001,1953.4,1952.6,1.28034415]
[1771340764370,0.001,1953.4,1952.3,1.2805409]
[1771340764780,0.001,1953.4,1952.4,10.239432]
[1771340764960,1.7438947,1953.9,1952.4,10.239432]
[1771340765384,1.74389739,1953.9,1952.4,10.239432]
[1771340765588,0.46439991,1953.8,1952.3,8.21589732]
[1771340765791,0.46439991,1953.8,1952.3,1.2805409]
[1771340766000,0.46439991,1954.3,1952.6,6.93535642]
[1771340766197,0.46439991,1954.3,1953.1,6.93535642]
[1771340766498,6.93635642,1955.1,1953.4,11.497801]
[1771340766499,0.46439991,1954.8,1953.4,11.497801]
[1771340766660,0.46439991,1954.7,1953.3,1.27988532]
[1771340767007,0.46439991,1954.7,1953.4,3.887289]
[1771340767163,1.74414659,1955.1,1953.7,6.93535642]
[1771340767475,1.74411113,1955.1,1953.7,6.93535642]
[1771340767873,0.46539991,1955.1,1953.4,0.28925624]
[1771340768072,0.46439991,1955.0,1953.7,3.371925]
[1771340768275,0.46439991,1955.0,1953.4,0.1024]
[1771340768489,0.46439991,1954.8,1953.5,1.27975428]
[1771340769261,0.46439991,1954.8,1953.5,8.20189405]
[1771340769888,0.46439991,1954.8,1953.5,1.27975428]
[1771340770270,0.46439991,1954.8,1953.6,2.55956]
[1771340770487,1.74336854,1954.7,1953.3,5.11901714]
[1771340770672,0.46439991,1954.7,1953.4,3.268499]
[1771340770993,0.46439991,1954.7,1953.4,3.867963]
[1771340771165,0.46439991,1954.7,1953.4,5.393722]
[1771340771364,1.74413973,1955.1,1953.5,0.28925624]
[1771340771574,1.74413973,1955.1,1953.6,11.485117]
[1771340771774,0.46439991,1955.0,1953.6,9.505757]
[1771340772098,0.001,1955.1,1953.9,2.491144]
[1771340772607,0.001,1955.1,1954.0,1.27942681]
[1771340772970,0.001,1955.1,1954.3,15.892984]
[1771340773517,0.001,1955.1,1954.3,14.904984]
[1771340774063,0.001,1955.1,1954.3,3.895303]
[1771340774300,0.001,1955.1,1954.3,0.1024]
[1771340774478,0.001,1955.1,1954.4,1.27916496]
[1771340775272,0.001,1954.6,1954.5,7.089271]
[1771340775507,0.001,1955.1,1954.4,1.27916496]
[1771340775912,0.45655422,1955.1,1954.4,1.27916496]
[1771340776270,0.45655422,1955.1,1954.0,1.27942681]
[1771340776574,0.45655422,1955.1,1953.5,5.12001859]
[1771340776575,0.45555422,1954.9,1953.5,1.28078877]
[1771340776773,5.241447,1954.8,1953.5,0.0011]
[1771340776993,0.45555422,1954.5,1953.5,0.0011]
[1771340777678,6.92213977,1954.8,1953.5,0.0011]
[1771340777679,0.45555422,1954.3,1953.5,0.0011]
[1771340777880,0.45555422,1954.3,1953.4,0.0011]
[1771340778510,0.45555422,1954.1,1953.4,0.0011]
[1771340778697,0.45555422,1954.1,1953.2,0.0011]
[1771340779407,0.45555422,1954.1,1952.1,1.28067209]
[1771340779408,0.45555422,1953.7,1952.1,1.28067209]
[1771340779570,0.45555422,1953.5,1952.1,1.28067209]
[1771340779980,0.45555422,1953.5,1951.4,0.0011]
[1771340779981,0.45555422,1953.2,1951.4,0.0011]
[1771340780276,0.45555422,1952.8,1951.4,1.28219475]
[1771340780503,0.45555422,1953.9,1951.8,6.92213977]
[1771340780803,0.45555422,1953.5,1951.8,6.92213977]
[1771340781177,0.45555422,1953.5,1952.0,15.824303]
[1771340781480,0.45555422,1953.5,1951.8,6.92213977]
[1771340782796,0.45555422,1953.3,1952.0,4.706128]
[1771340782992,0.45555422,1953.3,1951.9,1.28080331]
[1771340783707,0.45555422,1953.1,1951.2,5.12502988]
[1771340783890,0.45555422,1952.7,1951.5,1.28106584]
[1771340784215,0.45555422,1952.5,1951.4,0.0011]
[1771340784403,0.45555422,1952.3,1951.4,0.0011]
[1771340784609,0.45555422,1952.1,1951.1,0.0011]
[1771340784815,0.45555422,1951.9,1951.1,0.0011]
[1771340785118,0.45555422,1951.9,1950.7,0.0011]
[1771340785328,0.45555422,1951.7,1950.7,0.0011]
[1771340786928,0.45555422,1953.0,1951.4,30.0]
[1771340787095,0.45555422,1953.0,1951.3,6.92213977]
[1771340787096,0.45555422,1953.5,1952.1,4.799495]
[1771340787422,1.27966831,1953.7,1951.6,6.92213977]
[1771340787423,0.45555422,1953.3,1951.6,6.92213977]
[1771340788018,0.45555422,1953.3,1951.4,0.1024]
[1771340788235,0.45555422,1953.1,1951.3,4.925795]
[1771340788442,0.45555422,1953.1,1951.6,6.92213977]
[1771340788620,0.45555422,1953.1,1951.4,0.1024]
[1771340788822,0.45555422,1952.8,1951.3,1.38359715]
[1771340789042,0.45555422,1952.8,1951.3,1.28119715]
[1771340789408,0.45555422,1952.6,1950.9,5.12582415]
[1771340789608,0.45555422,1952.4,1951.0,1.28139415]
[1771340790946,0.45555422,1952.4,1951.0,8.191501]
[1771340791239,1.7360316,1952.4,1951.0,8.191501]
[1771340791441,0.45555422,1952.3,1951.0,6.639311]
[1771340791628,0.45555422,1952.3,1951.0,4.65424]
[1771340791939,0.45555422,1952.3,1951.0,3.224879]
[1771340792435,0.45555422,1952.3,1951.0,2.932229]
[1771340792812,0.45555422,1952.3,1950.9,5.12582415]
[1771340793111,0.45555422,1952.2,1950.9,5.12582415]
[1771340793320,0.44531173,1952.2,1950.8,0.0011]
[1771340793755,0.44531173,1952.2,1950.9,2.50065]
[1771340793951,0.44531173,1952.2,1950.9,2.02274]
[1771340794149,0.44531173,1952.2,1950.8,0.0011]
[1771340794357,0.44531173,1952.2,1950.9,3.88531]
[1771340794554,1.73589052,1952.7,1951.1,6.92213977]
[1771340794765,1.73589052,1952.7,1951.0,0.18685624]
[1771340794766,0.45555422,1952.6,1951.0,0.18685624]
[1771340794931,0.45555422,1952.6,1951.2,6.469472]
[1771340795261,0.45555422,1952.4,1951.3,1.28119715]
[1771340797330,0.45555422,1952.4,1950.9,5.1247886]
[1771340797331,1.2805409,1952.3,1950.9,5.787412]
[1771340797747,1.73609512,1952.3,1950.9,5.787412]
[1771340798171,0.45555422,1952.3,1950.9,5.787412]
[1771340798459,0.45555422,1952.3,1950.9,4.54228]
[1771340798960,0.45555422,1952.3,1951.4,0.0011]
[1771340799137,0.45555422,1952.7,1951.6,4.26417]
[1771340799327,1.735857,1952.7,1951.7,1.28093456]
[1771340799658,0.45555422,1952.7,1951.7,1.28093456]
[1771340800054,0.45555422,1953.2,1951.8,16.294179]
[1771340800256,0.45555422,1953.2,1951.7,1.28093456]
[1771340800555,0.45555422,1953.0,1951.7,1.28093456]
[1771340801135,0.45555422,1952.8,1951.4,1.28218056]
[1771340801357,0.45555422,1952.6,1951.4,0.0011]
[1771340803642,1.73596395,1952.5,1951.4,0.0011]
[1771340803868,0.45555422,1952.4,1951.4,0.0011]
[1771340806058,0.4546789,1952.2,1951.4,0.0011]
[1771340807651,1.2805409,1952.3,1951.3,0.0011]
[1771340807652,0.4546789,1952.0,1951.3,0.0011]
[1771340808052,1.28080331,1951.9,1951.3,0.0011]
[1771340808266,1.73548221,1951.9,1951.3,0.0011]
[1771340808473,0.4546789,1951.9,1951.3,0.0011]
[1771340810877,1.73526286,1952.3,1951.3,0.0011]
[1771340811488,0.4546789,1952.2,1951.3,0.0011]
[1771340811982,0.4546789,1952.2,1951.4,0.0011]
[1771340812293,1.73533505,1952.2,1951.4,0.0011]
[1771340812527,0.001,1952.3,1951.4,7.38385155]
[1771340812808,0.001,1953.4,1951.4,7.38385155]
[1771340812809,0.46958459,1953.0,1952.0,7.38275155]
[1771340813017,0.26685726,1953.2,1952.3,7.38275155]
[1771340813197,0.46958459,1953.3,1952.1,2.078463]
[1771340813440,0.46958459,1953.3,1951.4,7.38385155]
[1771340813610,0.46958459,1953.2,1951.5,0.1024]
[1771340813938,0.46958459,1953.0,1951.4,0.0011]
[1771340814148,0.46958459,1952.8,1951.4,0.0011]
[1771340815918,0.46958459,1952.6,1951.4,0.0011]
[1771340816329,0.46958459,1952.4,1951.4,0.0011]
[1771340816706,0.46958459,1953.2,1951.5,8.341364]
[1771340816910,0.46958459,1953.1,1951.5,8.341364]
[1771340817111,0.46958459,1953.1,1951.8,6.94279023]
[1771340817312,0.46958459,1953.1,1951.9,7.695518]
[1771340817914,0.46958459,1953.1,1951.8,5.205387]
[1771340818333,0.46958459,1953.1,1951.9,1.28080331]
[1771340818531,1.74960603,1953.1,1951.9,1.28080331]
[1771340818733,0.46958459,1953.0,1951.9,1.28080331]
[1771340820373,0.46958459,1953.0,1951.8,5.12321327]
[1771340820549,0.46958459,1953.0,1951.9,8.705052]
[1771340820870,0.46958459,1953.1,1951.8,5.12321327]
[1771340821376,0.46958459,1952.9,1951.5,5.12424503]
[1771340821540,0.46958459,1952.7,1951.4,1.28218323]
[1771340821744,0.46958459,1952.5,1951.4,0.0011]
[1771340821965,0.46958459,1952.5,1951.4,1.28222028]
[1771340822266,0.46958459,1952.5,1951.4,0.0011]
[1771340822468,0.46958459,1952.1,1951.4,0.0011]
[1771340823873,0.46958459,1952.1,1951.5,0.0011]
[1771340824458,0.46958459,1951.9,1951.3,0.0011]
[1771340826762,1.75039644,1951.9,1951.3,0.0011]
[1771340826964,0.46958459,1951.8,1951.3,0.0011]
[1771340827475,0.46958459,1951.8,1950.8,0.0011]
[1771340828468,0.46958459,1951.6,1950.8,0.0011]
[1771340828663,0.46958459,1951.4,1950.8,0.0011]
[1771340829268,1.28106584,1951.5,1950.8,0.0011]
[1771340829468,1.75051915,1951.7,1950.8,0.0011]
[1771340829668,0.46958459,1951.6,1950.8,0.0011]
[1771340830179,0.46958459,1951.4,1950.3,0.0011]
[1771340830749,0.46958459,1951.2,1950.3,0.0011]
[1771340831145,0.46958459,1951.4,1950.3,0.0011]
[1771340832475,5.0,1950.8,1950.3,0.0011]
[1771340833251,6.28153052,1950.8,1950.3,0.0011]
[1771340833758,6.75111511,1950.8,1950.3,0.0011]
[1771340833966,5.46958459,1950.8,1950.3,0.0011]
[1771340834675,5.0,1950.8,1950.3,0.0011]
[1771340835980,5.0,1950.8,1950.4,0.0011]
[1771340836163,1.2810968,1951.5,1950.4,0.0011]
[1771340836565,1.77639969,1951.5,1950.4,0.0011]
[1771340837586,0.49530289,1951.4,1950.4,0.0011]
[1771340839298,0.49530289,1951.2,1950.4,0.0011]
[1771340841401,0.49530289,1950.7,1949.9,0.0011]
[1771340841559,0.49530289,1950.7,1949.7,1.01477479]
[1771340841761,0.49530289,1950.5,1949.7,1.01477479]
[1771340841984,0.49530289,1950.5,1949.7,2.2970118]
[1771340842185,0.49530289,1950.5,1949.7,1.01477479]
[1771340842598,0.49530289,1950.5,1949.7,2.2970226]
[1771340843469,0.49530289,1950.3,1949.7,1.01477479]
[1771340844268,0.49530289,1950.3,1949.2,1.28251691]
[1771340845411,0.49530289,1950.3,1948.9,5.13030987]
[1771340845412,0.49530289,1950.1,1948.9,5.13030987]
[1771340845990,0.49530289,1950.1,1949.0,6.95728465]
[1771340846372,1.28182969,1950.4,1948.9,5.13030987]
[1771340846575,1.28182969,1950.4,1949.1,6.95728465]
[1771340847182,0.49530289,1950.5,1949.2,16.898248]
[1771340847382,0.49530289,1950.5,1949.3,1.28251167]
[1771340847710,5.12584091,1950.9,1949.3,1.28251167]
[1771340847711,1.28150129,1950.9,1949.5,6.95728465]
[1771340848073,0.49530289,1951.5,1949.9,6.95728465]
[1771340848521,0.001,1950.4,1949.9,6.95728465]
[1771340848683,0.49530289,1951.5,1950.0,22.528112]
[1771340848873,0.001,1951.7,1950.7,6.95728465]
[1771340849075,0.001,1951.7,1950.8,0.1024]
[1771340849276,1.28042132,1952.5,1951.1,6.95728465]
[1771340849609,0.49530289,1952.3,1951.0,4.266518]
[1771340849910,0.49530289,1952.3,1950.8,8.23881017]
[1771340851476,0.49530289,1952.3,1950.7,5.12610211]
[1771340851477,0.49530289,1952.1,1950.7,5.12610211]
[1771340852275,0.49530289,1952.2,1950.8,2.224524]
[1771340852481,0.49530289,1952.2,1950.3,0.1024]
[1771340852482,0.49530289,1951.8,1950.3,1.28178835]
[1771340852772,0.49530289,1951.6,1950.4,4.466828]
[1771340852972,1.28058568,1952.3,1950.4,4.466828]
[1771340852973,0.49530289,1952.0,1950.6,6.95728465]
[1771340853407,0.49530289,1952.0,1950.7,1.28159122]
[1771340853714,0.49530289,1952.4,1951.1,6.95728465]
[1771340853879,0.49530289,1952.4,1951.2,3.299454]
[1771340854278,0.49530289,1952.4,1951.2,2.637212]
[1771340854483,0.49530289,1952.4,1951.0,10.475312]
[1771340854700,0.49530289,1952.4,1950.9,2.488052]
[1771340854907,0.49530289,1952.4,1950.9,3.477981]
[1771340855108,0.49530289,1952.4,1950.7,1.28159122]
[1771340855280,0.49530289,1952.3,1950.8,3.6076]
[1771340855481,0.49530289,1952.1,1950.9,1.28145983]
[1771340856807,5.12161313,1952.7,1950.9,1.28145983]
[1771340856808,0.49630289,1952.9,1951.1,6.95728465]
[1771340856982,0.49530289,1952.7,1951.2,6.498821]
[1771340857184,0.49530289,1952.7,1951.1,6.95728465]
[1771340857512,0.49530289,1952.5,1951.2,1.28126281]
[1771340859190,0.49530289,1952.3,1950.7,5.12636008]
[1771340859407,0.49530289,1952.3,1950.6,1.28159122]
[1771340859408,0.49530289,1951.7,1949.8,6.95728465]
[1771340859717,0.49530289,1951.3,1950.0,6.88575]
[1771340860093,1.28102474,1951.6,1950.2,6.95728465]
[1771340860299,0.49530289,1951.5,1949.9,1.28211703]
[1771340860500,0.49530289,1951.5,1950.0,3.66707]
[1771340861017,0.49530289,1951.5,1951.2,0.0011]
[1771340861310,0.49530289,1951.5,1951.0,0.0011]
[1771340861481,0.49530289,1951.5,1949.9,1.28211703]
[1771340861686,1.77643438,1951.4,1950.0,5.12794215]
[1771340861882,0.49530289,1951.3,1949.9,1.28205128]
[1771340863624,0.49530289,1951.1,1949.6,1.28231432]
[1771340863843,0.49530289,1950.9,1949.5,5.12846812]
[1771340864551,0.49530289,1950.9,1949.2,1.28257746]
[1771340864687,0.46478149,1950.7,1949.2,1.28257746]
[1771340865914,0.46478149,1950.5,1949.1,5.12952038]
[1771340866116,0.46478149,1950.3,1949.1,5.12952038]
[1771340867121,1.28165692,1950.6,1949.0,1.2837549]
[1771340867122,0.46478149,1950.1,1949.0,1.2837549]
[1771340868531,0.46478149,1949.9,1949.0,0.0011]
[1771340869730,0.46478149,1949.7,1949.0,0.0011]
[1771340870041,1.74681263,1950.1,1949.0,0.0011]
[1771340870545,0.46478149,1949.8,1949.0,0.0011]
[1771340871523,1.28203523,1950.1,1949.0,0.0011]
[1771340871721,1.74675414,1950.2,1949.0,0.0011]
[1771340872745,0.4519952,1950.1,1949.0,0.0011]
[1771340873041,0.4519952,1950.1,1949.1,0.0011]
[1771340874942,1.28205128,1950.0,1949.1,0.0011]
[1771340875148,0.4519952,1950.1,1949.1,0.0011]
[1771340875352,0.4519952,1950.5,1949.1,6.95838465]
[1771340875511,1.73373584,1950.5,1949.1,6.95838465]
[1771340875708,1.73373584,1950.5,1949.2,6.988656]
[1771340876044,1.73373584,1950.5,1949.2,6.388772]
[1771340876258,1.73373584,1950.5,1949.2,4.686772]
[1771340876559,1.73371801,1950.5,1949.2,4.686772]
[1771340876914,1.28185407,1950.3,1949.1,1.28374327]
[1771340877325,1.73384927,1950.3,1949.1,1.28374327]
[1771340877522,1.28174998,1950.5,1949.2,8.488065]
[1771340877813,1.28169581,1950.6,1949.2,6.37649]
[1771340878319,0.4519952,1950.5,1949.2,3.05399]
[1771340878519,0.4519952,1950.9,1949.4,6.95728465]
[1771340878752,0.4519952,1950.9,1949.8,6.95728465]
[1771340878922,0.4519952,1950.9,1949.9,1.28211703]
[1771340879243,0.4519952,1951.3,1949.9,1.28211703]
[1771340879448,0.4519952,1951.3,1950.0,0.18685624]
[1771340879667,1.28093456,1951.7,1950.2,6.95728465]
[1771340879668,0.4519952,1951.7,1950.2,6.95728465]
[1771340879857,0.4519952,1952.3,1950.8,2.8737]
[1771340880033,0.4519952,1952.1,1950.3,7.24654089]
[1771340880237,0.4519952,1952.1,1950.4,2.95219624]
[1771340880545,0.4519952,1952.1,1950.3,7.05968465]
[1771340880721,0.4519952,1951.9,1949.9,8.23940168]
[1771340880928,0.4519952,1951.4,1950.8,0.1688]
[1771340881626,0.4519952,1951.4,1950.5,1.28172263]
[1771340882028,0.4519952,1951.4,1950.8,0.1688]
[1771340882837,0.4519952,1951.4,1950.6,0.1688]
[1771340883037,0.4519952,1951.4,1950.6,1.45045242]
[1771340883038,0.4519952,1951.2,1950.6,1.45045242]
[1771340883229,0.4519952,1951.2,1950.7,0.1688]
[1771340883432,1.28110255,1951.5,1950.7,0.1688]
[1771340883764,5.57610536,1951.6,1950.6,1.28165242]
[1771340883765,1.73300697,1951.6,1951.2,0.1688]
[1771340884139,1.73299607,1951.6,1951.2,0.1688]
[1771340884541,0.4519952,1951.6,1951.2,0.1088]
[1771340885073,1.73299804,1951.6,1951.2,0.1088]
[1771340885673,0.4519952,1951.6,1951.2,1.39002027]
[1771340885857,0.4519952,1951.6,1951.2,1.39002329]
[1771340886260,0.4519952,1951.6,1951.2,0.1088]
[1771340886457,1.73300148,1951.6,1951.2,0.1088]
[1771340886844,0.4519952,1951.6,1951.0,1.28138997]
[1771340887172,0.4519952,1951.6,1950.4,5.12665095]
[1771340887759,1.28090152,1951.8,1950.4,5.12665095]
[1771340887760,1.7327329,1952.0,1950.5,0.18685624]
[1771340887965,0.4519952,1951.9,1950.4,5.12665095]
[1771340888971,1.73286127,1951.9,1950.4,5.12665095]
[1771340889200,0.4519952,1952.2,1950.7,6.95728465]
[1771340889347,0.4519952,1952.2,1951.1,6.95728465]
[1771340889546,0.4529952,1952.6,1951.5,6.95728465]
[1771340889772,0.001,1952.6,1951.6,2.11265]
[1771340889984,0.001,1952.6,1951.5,6.81199176]
[1771340890290,0.001,1952.6,1951.8,6.81199176]
[1771340890571,0.001,1952.9,1952.2,6.81199176]
[1771340890806,0.001,1952.9,1951.9,6.81199176]
[1771340891096,0.001,1952.9,1952.0,1.2807377]
[1771340891245,0.001,1952.9,1952.2,6.81199176]
[1771340891444,0.001,1952.9,1952.0,1.2807377]
[1771340891884,0.001,1953.4,1952.2,6.81199176]
[1771340892044,0.4529952,1953.4,1952.0,1.2807377]
[1771340892246,1.73281879,1953.4,1952.2,7.37219789]
[1771340892675,0.001,1953.4,1952.5,7.37219789]
[1771340892883,7.37219789,1954.4,1953.2,7.37219789]
[1771340892884,1.73127473,1954.3,1953.2,7.37219789]
[1771340893064,1.73127473,1954.3,1953.3,1.27988532]
[1771340893065,0.4519952,1954.2,1953.3,1.27988532]
[1771340893375,0.4519952,1954.2,1952.9,5.12036926]
[1771340893376,0.4519952,1954.2,1953.0,7.37219789]
[1771340893575,0.4519952,1954.2,1952.9,0.18685624]
[1771340893890,0.4519952,1954.2,1952.8,2.4297]
[1771340894074,0.4519952,1954.2,1953.2,7.37219789]
[1771340894261,0.4519952,1954.7,1953.5,7.37219789]
[1771340894466,0.4519952,1954.7,1953.2,7.37219789]
[1771340894988,0.4519952,1954.7,1953.3,24.475078]
[1771340895191,1.27903407,1954.6,1953.5,7.37219789]
[1771340895490,1.27903407,1954.6,1953.4,1.2798198]
[1771340895491,0.49296727,1954.5,1953.4,1.2798198]
[1771340896457,0.49296727,1954.2,1952.5,5.12138241]
[1771340896665,0.49296727,1954.0,1952.6,1.28034415]
[1771340897189,0.49296727,1953.8,1952.5,5.12138241]
[1771340897768,0.49296727,1953.8,1952.7,7.37219789]
[1771340897963,0.49296727,1953.8,1952.5,5.12138241]
[1771340898390,0.49296727,1953.6,1952.2,1.28060649]
[1771340898622,0.49296727,1953.3,1951.5,7.37219789]
[1771340898905,0.49296727,1953.3,1951.8,7.37219789]
[1771340899116,0.49296727,1953.9,1952.7,7.37219789]
[1771340899267,0.49296727,1953.8,1952.8,1.28021302]
[1771340899472,0.49296727,1954.4,1953.0,7.37219789]
[1771340899772,0.49296727,1954.4,1952.8,1.28021302]
[1771340901265,0.49296727,1954.2,1952.7,5.1208521]
[1771340901492,0.49296727,1954.2,1953.0,6.92872028]
[1771340901992,0.49296727,1954.2,1952.8,0.18685624]
[1771340902309,0.49296727,1954.2,1952.7,5.1208521]
[1771340902693,0.49296727,1954.0,1952.7,5.1208521]
[1771340903700,0.49296727,1953.8,1952.3,5.12111435]
[1771340905218,0.49296727,1953.8,1952.6,6.92872028]
[1771340905380,0.49296727,1953.8,1952.4,4.284671]
[1771340905715,0.49296727,1953.6,1952.5,1.28040973]
[1771340906211,0.49296727,1953.4,1952.0,5.12294268]
[1771340906414,12.04721339,1953.8,1952.3,9.815625]
[1771340906415,0.49296727,1953.8,1952.3,9.815625]
[1771340906612,0.49296727,1953.8,1952.0,5.12294268]
[1771340907123,0.49296727,1953.8,1952.1,2.796031]
[1771340907277,0.49296727,1953.6,1952.1,2.844373]
[1771340907478,0.49296727,1953.4,1952.0,5.12294268]
[1771340907708,0.49296727,1953.4,1952.1,3.713373]
[1771340907915,0.49296727,1953.4,1952.0,3.879109]
[1771340908217,0.49296727,1953.4,1951.9,1.2807377]
[1771340909015,0.49296727,1953.4,1952.6,0.0011]
[1771340909301,0.49296727,1953.4,1951.9,1.2807377]
[1771340909516,0.49296727,1953.4,1952.5,0.0011]
[1771340909702,0.49296727,1953.2,1952.5,0.0011]
[1771340911176,0.49296727,1953.2,1952.3,0.0011]
[1771340911671,0.49296727,1953.0,1952.3,0.0011]
[1771340911898,0.49296727,1953.0,1951.7,1.28086894]
[1771340912489,0.49296727,1953.0,1951.1,5.12522242]
[1771340912688,0.49296727,1952.6,1951.3,1.28119715]
[1771340912904,0.49296727,1952.5,1951.3,1.28119715]
[1771340913102,6.92872028,1952.6,1950.8,1.28152552]
[1771340913103,0.49296727,1952.3,1950.8,1.28152552]
[1771340913676,0.49296727,1952.3,1950.6,5.12610211]
[1771340913677,0.49296727,1952.1,1950.6,5.12610211]
[1771340914294,0.49296727,1952.1,1950.5,1.28275692]
[1771340914493,0.49296727,1951.9,1950.6,1.28165692]
[1771340915397,0.49296727,1951.9,1950.7,13.222406]
[1771340915595,0.49296727,1951.9,1950.7,11.600482]
[1771340915808,0.49296727,1952.6,1951.0,1.28139415]
[1771340916810,0.49296727,1952.6,1951.2,6.92872028]
[1771340917011,0.49296727,1952.6,1951.3,8.782187]
[1771340917234,0.49296727,1952.6,1951.3,5.40549]
[1771340917379,0.49296727,1952.6,1951.5,6.868406]
[1771340917579,0.49296727,1952.6,1951.5,6.159406]
[1771340917786,0.49296727,1952.6,1951.6,1.2810002]
[1771340917985,0.49296727,1953.0,1951.7,10.076037]
[1771340918311,0.49296727,1953.0,1951.7,2.96934]
[1771340918520,0.49296727,1953.0,1951.6,1.2810002]
[1771340919295,0.49296727,1953.0,1951.9,6.92872028]
[1771340919810,1.77306519,1953.0,1952.0,1.2807377]
[1771340920022,0.49296727,1953.0,1952.0,1.2807377]
[1771340920689,1.27995485,1953.2,1952.0,1.2807377]
[1771340920890,0.49296727,1953.7,1952.0,1.2807377]
[1771340921193,0.49296727,1953.7,1952.5,6.92872028]
[1771340921390,0.49296727,1953.7,1952.6,15.346464]
[1771340921597,5.11865925,1954.1,1952.9,6.92872028]
[1771340921598,0.49396727,1954.1,1952.9,6.92872028]
[1771340921826,0.49396727,1954.1,1953.1,1.28001638]
[1771340921827,0.001,1954.1,1953.1,1.28001638]
[1771340922011,0.001,1954.1,1953.4,7.36483413]
[1771340922198,0.49296727,1954.5,1953.4,7.36483413]
[1771340922614,0.001,1955.1,1953.7,7.36483413]
[1771340922615,0.49296727,1954.9,1953.7,7.36483413]
[1771340923350,0.001,1955.1,1954.0,7.36483413]
[1771340923623,0.001,1955.1,1954.3,7.36483413]
[1771340923795,0.001,1955.1,1954.4,1.27916496]
[1771340924525,0.47564533,1955.8,1954.5,6.91826904]
[1771340924705,0.47564533,1955.8,1954.4,1.27916496]
[1771340924706,0.47564533,1955.7,1954.4,1.27916496]
[1771340926011,0.47564533,1955.5,1954.2,5.11665984]
[1771340926926,0.47564533,1955.5,1953.9,4.052019]
[1771340927833,0.47564533,1955.5,1953.9,2.51011]
[1771340928051,0.47564533,1955.5,1954.0,1.27942681]
[1771340928052,0.47564533,1955.3,1954.0,1.27942681]
[1771340929062,0.47564533,1955.1,1953.7,1.27962327]
[1771340929226,0.47564533,1955.1,1953.6,5.11851462]
[1771340929227,0.47564533,1955.1,1953.4,1.2798198]
[1771340929627,0.47564533,1955.1,1953.5,11.91469]
[1771340929867,0.47564533,1955.1,1953.4,1.2798198]
[1771340930081,0.47564533,1954.7,1953.0,5.1192792]
[1771340930233,0.47564533,1954.7,1953.1,2.16825]
[1771340930563,0.47564533,1954.7,1953.0,5.1192792]
[1771340931535,0.47564533,1954.7,1953.2,0.18685624]
[1771340931750,0.47564533,1954.7,1953.6,6.91826904]
[1771340932071,0.47564533,1954.7,1953.7,1.27962327]
[1771340932369,0.1024,1955.3,1953.7,1.27962327]
[1771340932370,0.45051766,1955.5,1953.8,6.722435]
[1771340932540,0.45051766,1955.5,1954.1,7.756403]
[1771340932733,0.45051766,1955.5,1954.1,6.57739]
[1771340932933,0.45051766,1955.5,1954.4,6.91826904]
[1771340933360,1.56748984,1956.5,1953.9,0.20664916]
[1771340933361,0.49990442,1956.7,1955.6,6.91826904]
[1771340933563,0.6353791,1957.9,1957.3,6.34205658]
[1771340933749,0.6353791,1957.9,1956.4,6.91826904]
[1771340933750,0.5,1957.8,1957.0,6.34205658]
[1771340934263,0.5,1957.8,1955.9,7.02066904]
[1771340934264,0.5,1957.6,1955.8,9.742679]
[1771340934464,0.5,1957.6,1955.9,6.91826904]
[1771340934645,0.5,1957.6,1956.0,8.030263]
[1771340935162,0.5,1957.6,1956.0,5.556255]
[1771340935540,0.5,1957.6,1956.0,3.402571]
[1771340936070,1.2772697,1957.3,1955.9,1.27818395]
[1771340936271,0.5,1957.2,1955.9,1.27818395]
[1771340936953,0.1353791,1957.9,1957.0,6.91826904]
[1771340937157,6.91826904,1959.5,1957.2,6.91826904]
[1771340937496,0.45051766,1960.8,1958.9,2.84655]
[1771340937642,0.45051766,1960.8,1959.2,9.325129]
[1771340937837,0.45051766,1960.8,1959.5,6.91826904]
[1771340938048,5.09969911,1961.0,1959.1,6.91826904]
[1771340938255,0.45051766,1961.2,1959.2,8.19430007]
[1771340938555,0.45051766,1961.2,1959.5,0.28925624]
[1771340938754,12.652864,1961.5,1959.8,6.91826904]
[1771340939060,11.439582,1961.4,1959.5,0.59740734]
[1771340939259,0.45051766,1961.5,1959.5,0.59740734]
[1771340939260,5.603077,1961.3,1959.5,0.59740734]
[1771340939462,4.474821,1961.4,1959.5,0.59740734]
[1771340939679,4.92533866,1961.4,1959.5,0.49500734]
[1771340939865,0.45051766,1961.4,1959.6,2.2449]
[1771340940066,2.841479,1961.3,1959.5,0.49500734]
[1771340940266,1.27472975,1961.2,1959.7,1.27570546]
[1771340940464,1.00516933,1961.7,1960.0,0.45051766]
[1771340940789,1.00516933,1961.7,1961.2,2.62285]
[1771340940790,0.39516933,1961.7,1961.2,2.62285]
[1771340940986,0.45051766,1962.8,1961.2,2.62285]
[1771340940987,5.54560883,1962.7,1961.2,2.62285]
[1771340941188,5.54560883,1962.7,1960.2,0.45051766]
[1771340941189,0.45051766,1962.2,1960.6,6.91826904]
[1771340941392,0.45051766,1962.2,1960.7,6.359786]
[1771340941554,0.45051766,1962.6,1961.0,6.91826904]
[1771340941760,5.09509117,1962.7,1960.7,6.03231]
[1771340941761,0.45051766,1962.5,1960.7,6.03231]
[1771340941959,9.80265266,1962.4,1960.7,2.5128]
[1771340942162,9.80265266,1962.4,1960.6,6.91826904]
[1771340942163,0.45051766,1962.0,1960.6,8.19334606]
[1771340942356,0.45051766,1961.8,1960.3,1.275315]
[1771340942556,0.45051766,1961.6,1960.3,3.405555]
[1771340942758,0.45051766,1961.6,1960.3,5.10665]
[1771340942990,0.45051766,1961.6,1960.2,8.19363873]
[1771340942991,11.41996544,1962.6,1961.0,6.91826904]
[1771340943190,0.45051766,1962.5,1960.6,6.91826904]
[1771340943485,6.667571,1962.2,1960.6,6.91826904]
[1771340943696,0.45051766,1961.9,1960.2,8.19363873]
[1771340944396,1.72492251,1961.7,1960.2,8.19363873]
[1771340944697,0.45051766,1962.2,1960.6,6.91826904]
[1771340945011,0.45051766,1962.0,1960.3,2.24475]
[1771340945168,0.45151766,1961.8,1960.2,8.19363873]
[1771340945369,0.45151766,1961.8,1960.2,1.27536969]
[1771340945370,0.45051766,1961.6,1960.2,1.27536969]
[1771340945600,0.001,1961.8,1960.2,1.27536969]
[1771340945601,0.45051766,1961.5,1960.2,1.27536969]
[1771340945972,0.45051766,1961.5,1959.9,1.27557528]
[1771340946495,0.82406023,1961.5,1960.3,0.45051766]
[1771340946666,0.1024,1962.2,1960.3,0.45051766]
[1771340946667,0.5,1963.4,1961.4,15.707496]
[1771340946870,0.5,1963.4,1961.3,0.1024]
[1771340946871,0.5,1963.4,1961.8,6.91826904]